[Event "4th Chessfestival Gredine 2018"]
[Site "Ortisei"]
[Date "2018.06.18"]
[Round "3.12"]
[White "Hansson, Hakan"]
[Black "Bertagnolli, Alexander"]
[Result "0-1"]
[ECO "D38"]
[WhiteElo "1978"]
[BlackElo "2398"]
[Annotator "NA"]
[PlyCount "56"]
[EventDate "2018.06.16"]
[EventType "swiss"]
[EventCountry "ITA"]
[SourceTitle "playchess.com"]
[Source "ChessBase"]
[SourceQuality "1"]
[TimeControl "40/5400+30:1800+30"]

1. d4 {[%emt 0:00:30]} Nf6 {[%emt 0:01:00]} 2. Nf3 {[%emt 0:00:30]} d5 {[%emt 0:00:00]} 3. c4 {[%emt 0:01:30]} e6 {[%emt 0:00:00]} 4. Nc3 {[%emt 0:01:30]} Bb4 {[%emt 0:00:30]} 5. Qb3 {[%emt 0:06:30]} c5 {[%emt 0:06:30]} 6. cxd5 {[%emt 0:08:30] LiveBook: 39 Games} exd5 {[%emt 0:03:30]} 7. e3 {[%emt 0:07:30]} Nc6 {[%emt 0:02:30]} 8. Bb5 {[%emt 0:15:30]} O-O {[%emt 0:03:30]} 9. O-O {[%emt 0:10:30]} c4 {[%emt 0:01:30]} 10. Qd1 {[%emt 0:09:30]} Bg4 $15 {[%emt 0:09:30]} 11. Bxc6 {[%emt 0:10:30]} bxc6 {[%emt 0:01:30]} 12. Bd2 {[%emt 0:01:30]} Qc8 {[%emt 0:01:30]} 13. Qe2 {[%emt 0:08:34]} Rb8 {[%emt 0:03:30]} 14. Rfc1 {[%emt 0:03:47]} Qf5 {[%emt 0:05:30]} 15. Kf1 {[%emt 0:01:13]} Ne4 {[%emt 0:02:30]} 16. Nxe4 {[%emt 0:01:19]} dxe4 {[%emt 0:03:30]} 17. Bxb4 {[%emt 0:00:08]} Rxb4 {[%emt 0:00:30]} 18. Qd2 {[%emt 0:00:07]} Qb5 {[%emt 0:00:00]} 19. a4 {[%emt 0:01:08]} Rxa4 {[%emt 0:00:00]} 20. Rxa4 {[%emt 0:06:37]} c3+ {[%emt 0:01:30]} 21. Qe2 {[%emt 0:00:07]} cxb2 {[%emt 0:00:30]} 22. Rb1 {[%emt 0:00:19]} Qxa4 {[%emt 0:00:00]} 23. Qxb2 {[%emt 0:00:54]} exf3 {[%emt 0:00:00]} 24. h3 {[%emt 0:01:10]} Bf5 {[%emt 0:00:30]} 25. Ra1 {[%emt 0:00:14]} Qb5+ {[%emt 0:00:30]} 26. Qxb5 {[%emt 0:00:25]} fxg2+ {[%emt 0:00:30]} 27. Kxg2 {[%emt 0:00:09]} cxb5 {[%emt 0:00:30]} 28. Rxa7 {[%emt 0:00:13]} Rb8 {[%emt 0:00:00]} 0-1

[Event "4th Chessfestival Gredine 2018"]
[Site "Ortisei"]
[Date "2018.06.18"]
[Round "3.13"]
[White "Bosbach, Gerhard"]
[Black "Volkov, Dmitriy"]
[Result "0-1"]
[ECO "E73"]
[WhiteElo "2161"]
[BlackElo "2334"]
[Annotator "ChessBase"]
[PlyCount "76"]
[EventDate "2018.06.16"]
[EventType "swiss"]
[EventCountry "ITA"]
[SourceTitle "playchess.com"]
[Source "ChessBase"]
[SourceQuality "1"]
[TimeControl "40/5400+30:1800+30"]

1. d4 {[%emt 0:00:30] 6} Nf6 {[%emt 0:01:00] 6} 2. c4 {[%emt 0:00:00] 6} g6 {[%emt 0:00:00]} 3. Nc3 {[%emt 0:00:00]} Bg7 {[%emt 0:00:00]} 4. e4 {[%emt 0:00:00]} d6 {[%emt 0:00:00]} 5. Be2 {[%emt 0:00:00]} O-O {[%emt 0:00:00]} 6. Bg5 {[%emt 0:00:30]} Na6 {[%emt 0:00:00]} 7. Qd2 {[%emt 0:01:30]} e5 {[%emt 0:03:00]} 8. d5 {[%emt 0:04:30]} Qe8 {[%emt 0:05:30]} 9. Bh6 {[%emt 0:07:30]} Nc5 {[%emt 0:00:00]} 10. Bxg7 {[%emt 0:03:30]} Kxg7 {[%emt 0:00:00]} 11. f3 {[%emt 0:03:30]} a5 {[%emt 0:03:30]} 12. h4 {[%emt 0:06:30]} Qe7 {[%emt 0:08:30]} 13. Bd3 {[%emt 0:06:30]} Bd7 {[%emt 0:14:30]} 14. Nge2 {[%emt 0:04:30]} c6 {[%emt 0:05:30]} 15. Bc2 {[%emt 0:11:30]} cxd5 {[%emt 0:00:30]} 16. cxd5 {[%emt 0:03:30]} b5 {[%emt 0:00:30]} 17. h5 {[%emt 0:01:30]} b4 {[%emt 0:18:30]} 18. Nd1 {[%emt 0:06:30]} Ng8 {[%emt 0:01:30]} 19. hxg6 {[%emt 0:06:30]} fxg6 {[%emt 0:00:30]} 20. Nf2 {[%emt 0:01:30]} Bb5 {[%emt 0:02:30]} 21. Nd3 {[%emt 0:05:30]} Bxd3 {[%emt 0:06:30]} 22. Bxd3 {[%emt 0:00:30]} Rf7 {[%emt 0:02:30]} 23. O-O-O {[%emt 0:05:30] [%clk 0:14.50]} Nxd3+ {[%emt 0:17:26]} 24. Qxd3 {[%emt 0:05:46]} Qg5+ {[%emt 0:00:19]} 25. Kb1 {[%emt 0:00:48]} Qxg2 {[%emt 0:00:30]} 26. f4 {[%emt 0:00:44]} exf4 {[%emt 0:00:30]} 27. Nd4 {[%emt 0:00:39]} Nf6 {[%emt 0:00:45]} 28. Nf5+ {[%emt 0:00:01]} Kf8 {[%emt 0:04:54]} 29. Nxd6 {[%emt 0:00:42]} Rd7 {[%emt 0:00:07]} 30. e5 {[%emt 0:01:04]} Ng4 {[%emt 0:02:21]} 31. Rhf1 {[%emt 0:02:23]} Nxe5 {[%emt 0:00:57]} 32. Rxf4+ {[%emt 0:00:37]} Kg8 {[%emt 0:00:04]} 33. Qe3 {[%emt 0:01:06]} Rxd6 {[%emt 0:00:48]} 34. Qxe5 {[%emt 0:00:09]} Rad8 {[%emt 0:00:52]} 35. Qe7 {[%emt 0:05:19]} Rc8 {[%emt 0:00:18]} 36. Qf7+ {[%emt 0:02:15]} Kh8 {[%emt 0:00:02]} 37. Rf2 {[%emt 0:00:14]} Qe4+ {[%emt 0:00:08]} 38. Ka1 {[%emt 0:00:53]} Qxd5 {[%emt 0:00:03]} 0-1

[Event "4th Chessfestival Gredine 2018"]
[Site "Ortisei"]
[Date "2018.06.18"]
[Round "3.14"]
[White "Sarkar, Justin"]
[Black "Voltolini, Giuseppe"]
[Result "1-0"]
[ECO "D48"]
[WhiteElo "2297"]
[BlackElo "2150"]
[Annotator "NA"]
[PlyCount "71"]
[EventDate "2018.06.16"]
[EventType "swiss"]
[EventCountry "ITA"]
[SourceTitle "playchess.com"]
[Source "ChessBase"]
[SourceQuality "1"]
[TimeControl "40/5400+30:1800+30"]

1. d4 {[%emt 0:02:30]} Nf6 {[%emt 0:01:00]} 2. c4 {[%emt 0:00:30]} e6 {[%emt 0:00:30]} 3. Nf3 {[%emt 0:01:30]} c5 {[%emt 0:00:30]} 4. e3 {[%emt 0:01:30]} d5 {[%emt 0:01:30]} 5. Nc3 {[%emt 0:01:30]} a6 {[%emt 0:01:30]} 6. dxc5 {[%emt 0:01:30]} Bxc5 {[%emt 0:03:30]} 7. a3 {[%emt 0:00:30] LiveBook: 96 Games} O-O {[%emt 0:01:30]} 8. b4 {[%emt 0:00:30]} Be7 {[%emt 0:11:30]} 9. Bb2 {[%emt 0:03:30]} dxc4 {[%emt 0:01:30]} 10. Bxc4 {[%emt 0:01:30]} b5 {[%emt 0:00:30]} 11. Bd3 {[%emt 0:03:30]} Bb7 {[%emt 0:01:30]} 12. O-O {[%emt 0:00:30]} Nbd7 {[%emt 0:01:30]} 13. e4 {[%emt 0:02:30] D48: Semi-Slav: Meran System: 7...b5 8 Bd3 a6} (13. Qe2 Bxf3 14. gxf3 Ne5 15. Rfd1 Nxd3 16. Rxd3 Qc7 17. Ne4 Nxe4 18. fxe4 Rfd8 19. Rc1 Qb7 20. Qg4 Bf8 {½-½ (42) Zhukova,N (2438)-Ibarra Jerez,J (2577) Caleta 2018}) 13... Rc8 {[%emt 0:04:30]} 14. Qe2 {[%emt 0:07:30]} Qc7 {[%emt 0:09:30]} 15. Rfc1 $146 {[%emt 0:12:30]} ({Predecessor:} 15. Rac1 Qb8 16. Nb1 Ng4 17. Nbd2 Bd6 {0-1 (70) Tokranovs,D (2325)-Westerberg,J (2469) Pardubice 2017}) 15... Qb8 {[%emt 0:03:30]} 16. h3 $15 {[%emt 0:12:30]} Rfd8 {[%emt 0:05:30]} 17. Qe3 {[%emt 0:11:30]} Bd6 {[%emt 0:08:30]} 18. Ne2 {[%emt 0:00:30]} Ne5 {[%emt 0:01:30]} 19. Nxe5 {[%emt 0:00:30]} Bxe5 {[%emt 0:00:30]} 20. Bxe5 {[%emt 0:00:30]} Qxe5 {[%emt 0:00:30]} 21. f4 {[%emt 0:00:30]} Qb2 {[%emt 0:04:30]} 22. Rcb1 {[%emt 0:01:30]} Rxd3 {[%emt 0:04:30]} 23. Qxd3 {[%emt 0:00:30]} Bxe4 {[%emt 0:00:30]} 24. Rxb2 {[%emt 0:02:30]} Bxd3 {[%emt 0:00:30]} 25. Rc1 {[%emt 0:00:30]} Bc4 {[%emt 0:00:30]} 26. Nc3 {[%emt 0:01:30]} h5 {[%emt 0:01:30]} 27. Rd2 {[%emt 0:02:30]} Bd5 {[%emt 0:04:30]} 28. Ne2 {[%emt 0:02:30]} Bc4 {[%emt 0:00:30]} 29. Rd6 {[%emt 0:03:30]} Ra8 {[%emt 0:01:30] [%clk 0:16.15]} 30. Nd4 {[%emt 0:12:32]} Ne4 {[%emt 0:10:15]} 31. Rb6 {[%emt 0:00:42]} Rd8 {[%emt 0:00:30]} 32. Nc6 {[%emt 0:00:37]} Rd2 {[%emt 0:00:30]} 33. Ne5 {[%emt 0:00:34]} h4 {[%emt 0:00:30]} 34. Nxc4 {[%emt 0:02:15]} bxc4 {[%emt 0:00:10]} 35. Rxa6 {[%emt 0:00:33]} c3 {[%emt 0:09:38]} 36. Rc6 {[%emt 0:00:16]} 1-0

[Event "4th Chessfestival Gredine 2018"]
[Site "Ortisei"]
[Date "2018.06.18"]
[Round "3.15"]
[White "Wecker, Martin"]
[Black "Kumar, Nikhil"]
[Result "0-1"]
[ECO "E17"]
[WhiteElo "2143"]
[BlackElo "2286"]
[Annotator "NA"]
[PlyCount "80"]
[EventDate "2018.06.16"]
[EventType "swiss"]
[EventCountry "ITA"]
[SourceTitle "playchess.com"]
[Source "ChessBase"]
[SourceQuality "1"]
[TimeControl "40/5400+30:1800+30"]

1. d4 {[%emt 0:00:30]} Nf6 {[%emt 0:02:00]} 2. c4 {[%emt 0:00:00]} e6 {[%emt 0:00:00]} 3. Nf3 {[%emt 0:00:00]} b6 {[%emt 0:00:00]} 4. g3 {[%emt 0:00:30]} Bb7 {[%emt 0:00:30]} 5. Bg2 {[%emt 0:00:30]} Be7 {[%emt 0:00:30]} 6. O-O {[%emt 0:00:30]} O-O {[%emt 0:00:30]} 7. Re1 {[%emt 0:00:30]} d5 {[%emt 0:00:00]} 8. cxd5 {[%emt 0:00:30]} exd5 {[%emt 0:00:00]} 9. Nc3 {[%emt 0:00:30]} Nbd7 {[%emt 0:00:30]} 10. Bf4 {[%emt 0:00:30]} c5 {[%emt 0:06:30]} 11. dxc5 {[%emt 0:00:30]} Nxc5 {[%emt 0:01:30]} 12. Nd4 {[%emt 0:01:30]} Nce4 {[%emt 0:02:30]} 13. Nxe4 {[%emt 0:18:30]} Nxe4 {[%emt 0:01:30]} 14. a3 {[%emt 0:02:30]} Bf6 {[%emt 0:07:30]} 15. Be3 {[%emt 0:09:30]} Re8 {[%emt 0:03:30]} 16. Rc1 {[%emt 0:03:30]} Qd7 {[%emt 0:01:30]} 17. Qd3 {[%emt 0:08:30]} g6 $11 {[%emt 0:15:30]} 18. b4 {[%emt 0:09:30]} Rad8 {[%emt 0:05:30]} 19. Red1 {[%emt 0:02:30]} Nd6 {[%emt 0:01:30]} 20. Nf3 {[%emt 0:13:30]} Nf5 {[%emt 0:05:30]} 21. Bh3 {[%emt 0:02:30]} Bc8 {[%emt 0:17:30]} 22. Bd4 {[%emt 0:10:18]} Qe7 {[%emt 0:00:30] 2 [%clk 0:15:54]} 23. Bxf6 {[%emt 0:02:49]} Qxf6 {[%emt 0:11:58]} 24. Bf1 {[%emt 0:00:30]} Nd6 {[%emt 0:00:34]} 25. Qxd5 {[%emt 0:00:30]} Ne4 {[%emt 0:00:59]} 26. Qc4 {[%emt 0:00:59]} Bg4 {[%emt 0:07:13]} 27. Rxd8 {[%emt 0:00:48]} Qxd8 {[%emt 0:00:02]} 28. Qc7 {[%emt 0:05:03]} Qf6 {[%emt 0:01:49]} 29. Qc6 {[%emt 0:00:37]} Re6 {[%emt 0:00:29]} 30. Qa8+ {[%emt 0:03:31]} Kg7 {[%emt 0:00:05]} 31. Bg2 {[%emt 0:00:34]} Nc3 {[%emt 0:00:14]} 32. Bf1 {[%emt 0:02:06]} Nxe2+ {[%emt 0:00:29]} 33. Bxe2 {[%emt 0:00:10]} Rxe2 {[%emt 0:00:05]} 34. Kg2 {[%emt 0:00:25]} Rxf2+ {[%emt 0:00:16]} 35. Kxf2 {[%emt 0:00:10]} Qb2+ {[%emt 0:00:05]} 36. Rc2 {[%emt 0:01:36]} Qxc2+ {[%emt 0:00:07]} 37. Ke3 {[%emt 0:00:15]} Qc3+ {[%emt 0:00:33]} 38. Kf4 {[%emt 0:00:17]} Qf6+ {[%emt 0:00:49]} 39. Kxg4 {[%emt 0:01:08]} Qf5+ {[%emt 0:00:06]} 40. Kh4 {[%emt 0:00:01]} Qh5# {[%emt 0:30:37]} 0-1

[Event "4th Chessfestival Gredine 2018"]
[Site "Ortisei"]
[Date "2018.06.18"]
[Round "3.16"]
[White "Thiel, Thomas"]
[Black "Behling, Robert"]
[Result "1-0"]
[ECO "D02"]
[WhiteElo "2261"]
[BlackElo "2128"]
[Annotator "NA"]
[PlyCount "97"]
[EventDate "2018.06.16"]
[EventType "swiss"]
[EventCountry "ITA"]
[SourceTitle "playchess.com"]
[Source "ChessBase"]
[SourceQuality "1"]
[TimeControl "40/5400+30:1800+30"]

1. d4 {[%emt 0:00:30] 2} d5 {[%emt 0:01:00] 2} 2. Bf4 {[%emt 0:00:00] 2} Nf6 {[%emt 0:00:30]} 3. e3 {[%emt 0:00:00]} c5 {[%emt 0:00:30]} 4. Nf3 {[%emt 0:00:30]} Nc6 {[%emt 0:01:30]} 5. Nbd2 {[%emt 0:00:30] D02: 1 d4 d5 2 Nf3 sidelines, including 2...Nf6 3 g3 and 2...Nf6 3 Bf4} (5. c3 e6 6. Nbd2 Bd6 7. dxc5 Bxc5 8. Bd3 h6 9. Qe2 Nh5 10. Bg3 Nxg3 11. hxg3 Bd7 12. e4 dxe4 13. Nxe4 Be7 14. g4 Qc7 15. g5 O-O-O 16. gxh6 gxh6 {½-½ (101) Mamedyarov,S (2809)-Nakamura,H (2787) Moscow 2018}) 5... cxd4 {[%emt 0:03:30]} 6. exd4 {[%emt 0:00:00]} Qb6 {[%emt 0:00:30]} 7. Nb3 {[%emt 0:01:00]} Bf5 {[%emt 0:06:30]} 8. c3 {[%emt 0:01:30]} h6 $146 {[%emt 0:02:30]} ({Predecessor:} 8... e6 9. Be2 h6 10. a4 a5 11. O-O Be7 12. Ne5 O-O {0-1 (50) Rakesh,K (2247)-Kiewra,K (2454) Douglas 2016}) 9. a4 {[%emt 0:02:30]} a5 {[%emt 0:01:30]} 10. Bb5 {[%emt 0:21:30]} e6 {[%emt 0:00:30]} 11. Ne5 {[%emt 0:12:30]} Be7 {[%emt 0:09:30]} 12. Nc5 {[%emt 0:04:30]} Bxc5 {[%emt 0:07:30]} 13. dxc5 {[%emt 0:00:00]} Qxc5 {[%emt 0:00:00]} 14. Qd4 {[%emt 0:05:00]} Qxd4 {[%emt 0:01:00]} 15. cxd4 {[%emt 0:00:30]} g5 {[%emt 0:09:30]} 16. Bd2 {[%emt 0:04:30]} Ke7 {[%emt 0:04:30]} 17. Bxc6 {[%emt 0:00:30]} bxc6 {[%emt 0:00:30]} 18. Bxa5 {[%emt 0:00:00]} Rhc8 {[%emt 0:02:30]} 19. Bb4+ {[%emt 0:14:00]} Ke8 {[%emt 0:00:30]} 20. h4 {[%emt 0:02:30]} Nd7 {[%emt 0:04:30]} 21. Nxd7 {[%emt 0:03:30]} Kxd7 {[%emt 0:00:00]} 22. Bc5 {[%emt 0:00:30]} f6 {[%emt 0:09:00]} 23. Kd2 {[%emt 0:00:30]} g4 {[%emt 0:06:30]} 24. a5 {[%emt 0:02:30]} Ra6 {[%emt 0:00:30]} 25. Rhe1 {[%emt 0:04:15] [%clk 0:08.48]} h5 {[%emt 0:13:50]} 26. Ra3 {[%emt 0:10:28]} Rb8 {[%emt 0:01:20]} 27. Bb6 {[%emt 0:00:30]} e5 {[%emt 0:01:02]} 28. Rc1 {[%emt 0:00:30]} Kd6 {[%emt 0:01:19]} 29. Re3 {[%emt 0:00:30]} e4 {[%emt 0:00:38]} 30. Kc3 {[%emt 0:00:30]} Rc8 {[%emt 0:04:44]} 31. b4 {[%emt 0:02:02]} Raa8 {[%emt 0:00:30]} 32. Kd2 {[%emt 0:00:38]} Re8 {[%emt 0:00:36]} 33. Rec3 {[%emt 0:00:14]} Bd7 {[%emt 0:00:54]} 34. Ke3 {[%emt 0:00:30]} Rec8 {[%emt 0:01:18]} 35. Kf4 {[%emt 0:00:11]} Ke6 {[%emt 0:00:17]} 36. Ra3 {[%emt 0:03:52]} Ra6 {[%emt 0:00:42]} 37. Rg3 {[%emt 0:00:14]} f5 {[%emt 0:01:36]} 38. Rgc3 {[%emt 0:01:14]} Raa8 {[%emt 0:00:00]} 39. R1c2 $16 {[%emt 0:00:00]} Kf6 {[%emt 0:00:00]} 40. Rc5 {[%emt 0:00:00]} Ke6 {[%emt 0:03:14]} 41. R2c3 {[%emt 0:18:02]} Kf6 {[%emt 0:02:30]} 42. Ra3 {[%emt 0:00:17]} Ra6 {[%emt 0:00:00]} 43. b5 {[%emt 0:00:15]} cxb5 {[%emt 0:01:00]} 44. Rxd5 {[%emt 0:00:06]} Be6 {[%emt 0:01:30]} 45. Rxb5 {[%emt 0:00:53]} Rc2 {[%emt 0:00:30]} 46. d5 {[%emt 0:00:13]} Bd7 {[%emt 0:01:30]} 47. Bd4+ {[%emt 0:00:31]} Ke7 {[%emt 0:00:30]} 48. Rb6 {[%emt 0:00:28]} Ra8 {[%emt 0:01:30]} 49. a6 {[%emt 0:00:35]} 1-0

[Event "4th Chessfestival Gredine 2018"]
[Site "Ortisei"]
[Date "2018.06.18"]
[Round "3.17"]
[White "Panjkovic, Aleksandar"]
[Black "Dittmar, Peter"]
[Result "1/2-1/2"]
[ECO "A06"]
[WhiteElo "2126"]
[BlackElo "2252"]
[Annotator "NA"]
[PlyCount "94"]
[EventDate "2018.06.16"]
[EventType "swiss"]
[EventCountry "ITA"]
[SourceTitle "playchess.com"]
[Source "ChessBase"]
[SourceQuality "1"]
[TimeControl "40/5400+30:1800+30"]

1. Nf3 {[%emt 0:00:30] 5} d5 {[%emt 0:03:00] 5} 2. d3 {[%emt 0:00:00] 5} Nc6 {[%emt 0:01:30]} 3. c3 {[%emt 0:01:00]} g6 {[%emt 0:06:30]} 4. Nbd2 {[%emt 0:01:30]} Bg7 {[%emt 0:01:30]} 5. e4 {[%emt 0:00:30]} e5 {[%emt 0:03:30]} 6. Be2 {[%emt 0:01:30]} Nge7 {[%emt 0:00:00]} 7. Qc2 {[%emt 0:03:30]} a5 {[%emt 0:01:00]} 8. a4 {[%emt 0:00:30]} O-O {[%emt 0:00:30]} 9. O-O {[%emt 0:00:30]} h6 {[%emt 0:01:30]} 10. Re1 {[%emt 0:01:30]} Re8 {[%emt 0:01:30]} 11. exd5 {[%emt 0:03:30]} Qxd5 {[%emt 0:01:30]} 12. Nc4 {[%emt 0:01:30]} Be6 {[%emt 0:03:30]} 13. Nfd2 {[%emt 0:09:30]} f5 {[%emt 0:05:30]} 14. Na3 {[%emt 0:02:30]} Qd7 {[%emt 0:04:30]} 15. Nb5 {[%emt 0:05:30]} Kh7 {[%emt 0:01:30]} 16. b3 {[%emt 0:02:30]} Nd5 {[%emt 0:03:30]} 17. Nc4 {[%emt 0:03:30]} Bf7 {[%emt 0:08:30]} 18. Bd2 {[%emt 0:03:30]} Re7 {[%emt 0:02:30]} 19. Rad1 {[%emt 0:07:30]} Qe8 {[%emt 0:00:30]} 20. Bc1 {[%emt 0:00:30]} Qg8 {[%emt 0:00:30]} 21. Bf3 {[%emt 0:04:30]} Rd7 {[%emt 0:01:30]} 22. g3 {[%emt 0:01:30]} Rad8 {[%emt 0:00:30]} 23. Ba3 {[%emt 0:05:30]} Bf6 {[%emt 0:13:30]} 24. Bg2 {[%emt 0:02:30]} h5 {[%emt 0:00:30]} 25. Bc5 {[%emt 0:03:30]} Qg7 {[%emt 0:01:30]} 26. Bf1 {[%emt 0:04:30]} Kh8 {[%emt 0:06:30]} 27. Bg2 {[%emt 0:07:30]} Bg8 {[%emt 0:00:30]} 28. Ba3 {[%emt 0:01:30] [%clk 0:03.02]} Nde7 {[%emt 0:07:57]} 29. Bxe7 {[%emt 0:19:48]} Rxe7 {[%emt 0:00:30]} 30. Bxc6 {[%emt 0:00:40]} bxc6 {[%emt 0:00:30]} 31. Na7 {[%emt 0:00:39]} Bd5 {[%emt 0:00:30]} 32. Nxa5 {[%emt 0:00:40]} Re6 {[%emt 0:00:30]} 33. Qe2 {[%emt 0:00:38]} Ra8 {[%emt 0:00:30]} 34. c4 {[%emt 0:00:14]} Rxa7 {[%emt 0:00:37]} 35. cxd5 {[%emt 0:00:26]} cxd5 {[%emt 0:00:33]} 36. b4 {[%emt 0:00:30]} c5 {[%emt 0:01:22]} 37. Qd2 {[%emt 0:02:02]} cxb4 {[%emt 0:01:07]} 38. Qxb4 {[%emt 0:00:12]} Rea6 {[%emt 0:00:37]} 39. Nb3 {[%emt 0:01:05]} Rxa4 {[%emt 0:02:32]} 40. Qb8+ {[%emt 0:00:08]} Kh7 {[%emt 0:01:15]} 41. Nc5 {[%emt 0:04:28]} R4a5 {[%emt 0:08:30]} 42. Rc1 {[%emt 0:13:10]} Qc7 {[%emt 0:07:30]} 43. Qxc7+ $11 {[%emt 0:00:57]} Rxc7 {[%emt 0:00:30]} 44. Ne4 {[%emt 0:00:16]} Rxc1 {[%emt 0:17:02]} 45. Nxf6+ {[%emt 0:00:23]} Kg7 {[%emt 0:00:10]} 46. Nxh5+ {[%emt 0:03:46]} gxh5 {[%emt 0:01:57]} 47. Rxc1 {[%emt 0:00:06]} d4 {[%emt 0:01:17]} 1/2-1/2

[Event "4th Chessfestival Gredine 2018"]
[Site "Ortisei"]
[Date "2018.06.18"]
[Round "3.18"]
[White "Jaracz, Barbara"]
[Black "Colombo, Roberto"]
[Result "1/2-1/2"]
[ECO "B40"]
[WhiteElo "2246"]
[BlackElo "2125"]
[Annotator "NA"]
[PlyCount "61"]
[EventDate "2018.06.16"]
[EventType "swiss"]
[EventCountry "ITA"]
[SourceTitle "playchess.com"]
[Source "ChessBase"]
[SourceQuality "1"]
[TimeControl "40/5400+30:1800+30"]

1. e4 {[%emt 0:00:30]} c5 {[%emt 0:01:00]} 2. Nf3 {[%emt 0:00:00]} e6 {[%emt 0:00:00]} 3. d4 {[%emt 0:01:00]} cxd4 {[%emt 0:00:00]} 4. Nxd4 {[%emt 0:00:30]} Nc6 {[%emt 0:00:00]} 5. Nxc6 {[%emt 0:02:30]} bxc6 {[%emt 0:00:00]} 6. Bd3 {[%emt 0:00:30]} Nf6 {[%emt 0:00:30]} 7. O-O {[%emt 0:00:30]} d5 {[%emt 0:00:30]} 8. Nd2 {[%emt 0:00:30]} Be7 {[%emt 0:03:30]} 9. Qe2 {[%emt 0:01:30] LiveBook: 92 Games} Rb8 {[%emt 0:04:30]} 10. c4 {[%emt 0:02:30]} Qc7 {[%emt 0:10:30]} 11. e5 {[%emt 0:07:30]} Nd7 {[%emt 0:00:30]} 12. f4 {[%emt 0:00:00]} g6 {[%emt 0:05:30]} 13. b3 {[%emt 0:09:00]} Nc5 {[%emt 0:12:30]} 14. Bc2 {[%emt 0:02:30]} a5 {[%emt 0:11:30]} 15. Rb1 {[%emt 0:03:30]} Ba6 {[%emt 0:04:30]} 16. Kh1 $11 {[%emt 0:07:30]} Nd7 {[%emt 0:11:30]} 17. a3 {[%emt 0:02:30]} Nb6 {[%emt 0:03:30]} 18. Bd3 {[%emt 0:02:30]} dxc4 {[%emt 0:09:30]} 19. Nxc4 {[%emt 0:14:30]} Nxc4 {[%emt 0:00:30]} 20. Bxc4 {[%emt 0:00:00]} Bxc4 {[%emt 0:00:30]} 21. Qxc4 {[%emt 0:00:00]} O-O {[%emt 0:00:39]} 22. Bb2 {[%emt 0:13:30] ]} Rb5 {[%emt 0:05:36] [%clk 0:09.16]} 23. a4 {[%emt 0:10:37]} Rd5 {[%emt 0:05:59]} 24. g4 {[%emt 0:00:30]} Rfd8 {[%emt 0:01:48]} 25. f5 {[%emt 0:01:57]} Bc5 {[%emt 0:02:39]} 26. fxe6 {[%emt 0:05:51]} fxe6 {[%emt 0:00:02]} 27. Rbe1 {[%emt 0:05:25]} Qd7 {[%emt 0:01:13]} 28. Bc3 {[%emt 0:02:37]} Bd4 {[%emt 0:02:05]} 29. Rf3 {[%emt 0:03:08]} Bxc3 {[%emt 0:02:25]} 30. Rxc3 {[%emt 0:00:37]} Rd1 {[%emt 0:00:30]} 31. Rce3 {[%emt 0:00:30]} 1/2-1/2

[Event "4th Chessfestival Gredine 2018"]
[Site "Ortisei"]
[Date "2018.06.18"]
[Round "3.19"]
[White "Molina, Fabrizio"]
[Black "Riebel, Werner"]
[Result "0-1"]
[ECO "E02"]
[WhiteElo "2212"]
[BlackElo "2113"]
[Annotator "NA"]
[PlyCount "100"]
[EventDate "2018.06.16"]
[EventType "swiss"]
[EventCountry "ITA"]
[SourceTitle "playchess.com"]
[Source "ChessBase"]
[SourceQuality "1"]
[TimeControl "40/5400+30:1800+30"]

1. d4 {[%emt 0:05:30] 5} d5 {[%emt 0:01:00] 5} 2. c4 {[%emt 0:00:30] 5} e6 {[%emt 0:00:30]} 3. Nf3 {[%emt 0:00:30]} Nf6 {[%emt 0:00:30]} 4. g3 {[%emt 0:00:30]} dxc4 {[%emt 0:01:30]} 5. Bg2 {[%emt 0:02:30]} Be7 {[%emt 0:03:30]} 6. Qa4+ {[%emt 0:08:30] LiveBook: 86 Games} Bd7 {[%emt 0:00:30]} 7. Qxc4 {[%emt 0:00:30]} Bc6 {[%emt 0:00:30]} 8. Nc3 {[%emt 0:00:30]} Nbd7 {[%emt 0:02:30]} 9. O-O {[%emt 0:02:30]} O-O {[%emt 0:04:30]} 10. Rd1 {[%emt 0:13:30]} Nb6 {[%emt 0:04:30]} 11. Qd3 {[%emt 0:01:30]} Bb4 {[%emt 0:05:30]} 12. Nd2 {[%emt 0:14:30]} Bxg2 {[%emt 0:01:30]} 13. Kxg2 {[%emt 0:00:30]} c5 {[%emt 0:01:30]} 14. a3 {[%emt 0:03:30]} cxd4 {[%emt 0:03:30]} 15. axb4 {[%emt 0:00:30]} dxc3 {[%emt 0:00:30]} 16. bxc3 {[%emt 0:01:30]} Qd5+ {[%emt 0:00:30]} 17. Nf3 {[%emt 0:05:30]} h6 {[%emt 0:07:30]} 18. Be3 {[%emt 0:07:30]} Nc4 {[%emt 0:00:30]} 19. Bc5 {[%emt 0:03:30]} Rfe8 {[%emt 0:03:30]} 20. Qc2 {[%emt 0:01:30]} Qc6 {[%emt 0:04:30]} 21. Qa2 {[%emt 0:03:30]} Ne5 {[%emt 0:08:30]} 22. Rd6 {[%emt 0:00:30]} Qe4 {[%emt 0:00:30]} 23. Rd4 {[%emt 0:02:41]} Qc6 {[%emt 0:00:00] ]} 24. Rad1 {[%emt 0:02:03]} Nxf3 {[%emt 0:03:00] 6} 25. exf3 {[%emt 0:00:03]} b6 {[%emt 0:00:30] 4} 26. Bd6 {[%emt 0:05:58]} Nd5 {[%emt 0:02:30] 5} 27. Be5 {[%emt 0:03:31] [%clk 0:00.49]} f6 {[%emt 0:20:30]} 28. Rc4 {[%emt 0:09:38]} Qb7 {[%emt 0:00:30]} 29. Bd4 {[%emt 0:00:27]} Kh8 {[%emt 0:00:30]} 30. b5 {[%emt 0:00:30]} Red8 {[%emt 0:00:30]} 31. Ra1 {[%emt 0:00:30]} Rd7 {[%emt 0:00:52]} 32. Qe2 {[%emt 0:00:30]} Rad8 {[%emt 0:00:33]} 33. Rca4 {[%emt 0:00:30]} e5 {[%emt 0:00:32]} 34. Be3 {[%emt 0:00:30]} Nxc3 {[%emt 0:00:38]} 35. Qc4 {[%emt 0:00:30]} Nxa4 {[%emt 0:00:32]} 36. Rxa4 {[%emt 0:00:30]} Rd6 {[%emt 0:00:35]} 37. Qh4 {[%emt 0:00:30]} f5 {[%emt 0:01:01]} 38. Qh5 {[%emt 0:00:20]} Rf8 {[%emt 0:00:18]} 39. Bc1 {[%emt 0:00:55]} Qf7 {[%emt 0:01:27]} 40. Qh4 {[%emt 0:00:40]} Re6 {[%emt 0:03:32]} 41. Bb2 {[%emt 0:01:14]} Kh7 {[%emt 0:02:30]} 42. Qc4 {[%emt 0:02:30]} e4 {[%emt 0:03:30]} 43. f4 {[%emt 0:02:30]} Re7 {[%emt 0:01:30]} 44. Qc3 {[%emt 0:07:39]} Rc7 {[%emt 0:01:30]} 45. Qa3 {[%emt 0:00:46]} Rd8 {[%emt 0:01:30]} 46. Be5 {[%emt 0:00:14]} Rcd7 $19 {[%emt 0:00:30]} 47. Qa1 {[%emt 0:01:14]} Kg8 {[%emt 0:02:30]} 48. Qc1 {[%emt 0:01:45]} Rd2 {[%emt 0:01:30]} 49. Bc7 {[%emt 0:02:43]} R8d7 {[%emt 0:01:30]} 50. Rxa7 {[%emt 0:01:21]} e3 {[%emt 0:01:30]} 0-1